bitfinex/quotes_ETHUSD_20241109
["timestamp","ask_amount","ask_price","bid_price","bid_amount"]
[1731144225552,0.34287959,3043.6,3043.0,0.07271434]
[1731144226860,0.34287959,3043.6,3043.2,0.00699046]
[1731144228427,0.34287959,3043.6,3042.8,0.0807]
[1731144228428,0.34287959,3043.6,3043.0,0.00699046]
[1731144228631,0.34287959,3043.6,3043.2,0.00699046]
[1731144228830,0.34287959,3043.6,3042.9,0.00699046]
[1731144229351,0.34287959,3043.6,3043.2,0.00699046]
[1731144230846,0.34287959,3043.6,3042.9,0.00699046]
[1731144231043,0.34287959,3043.6,3043.1,0.00699046]
[1731144231658,0.34287959,3043.6,3042.9,0.00699046]
[1731144231880,0.34287959,3043.6,3043.0,12.19]
[1731144232782,0.55,3043.5,3043.0,12.19]
[1731144234977,0.55,3043.5,3043.1,12.19]
[1731144235365,0.55,3043.6,3043.1,12.19]
[1731144236242,0.19737941,3043.5,3043.1,12.19]
[1731144240479,0.55,3043.4,3043.1,12.19]
[1731144240896,0.55,3043.4,3043.2,12.19]
[1731144241464,0.55,3043.2,3042.5,12.19]
[1731144241672,0.7599,3043.0,3042.6,12.19]
[1731144242061,0.55,3042.9,3042.6,12.19]
[1731144242262,0.55,3042.9,3042.7,12.19]
[1731144243135,0.7599,3043.0,3042.7,12.19]
[1731144243271,0.55,3043.2,3042.7,12.19]
[1731144246106,3.0,3043.1,3042.7,12.19]
[1731144246407,0.55,3042.8,3042.7,12.19]
[1731144246765,0.55,3042.8,3042.1,12.19]
[1731144247439,3.55,3042.9,3042.1,12.19]
[1731144247617,3.55,3042.9,3041.7,0.0807]
[1731144247618,4.19786001,3042.7,3041.8,12.19]
[1731144248228,3.8086,3042.6,3041.8,12.19]
[1731144248532,3.8086,3042.6,3041.6,0.00699046]
[1731144248533,0.55,3042.4,3041.9,12.19]
[1731144248689,0.55,3042.4,3041.9,12.188]
[1731144249183,3.55,3042.4,3041.9,12.188]
[1731144249382,0.55,3042.4,3041.9,12.188]
[1731144251102,0.55,3042.2,3041.9,12.188]
[1731144251928,0.34303737,3042.3,3041.9,12.188]
[1731144252403,0.34303737,3042.3,3041.9,12.19499046]
[1731144252747,0.34303737,3042.3,3042.0,12.188]
[1731144253031,0.34303737,3042.3,3042.1,12.19499046]
[1731144253526,3.3,3043.0,3042.4,0.00699046]
[1731144253739,0.33,3042.9,3042.4,0.00699046]
[1731144254493,3.33,3042.9,3042.5,12.188]
[1731144254692,3.33,3042.9,3042.0,0.0807]
[1731144254693,3.33,3042.9,3042.6,12.188]
[1731144255530,0.55,3042.8,3042.6,12.188]
[1731144256912,1.3586,3042.7,3042.6,12.188]
[1731144257108,1.88246,3042.7,3042.6,12.188]
[1731144257715,1.88246,3042.7,3042.1,11.87853906]
[1731144257896,0.55,3042.6,3042.1,11.87853906]
[1731144258097,0.55,3042.6,3042.2,11.87853906]
[1731144258315,3.55,3042.6,3042.2,11.87853906]
[1731144258596,4.64558,3042.3,3042.2,11.87853906]
[1731144258800,7.64558,3042.3,3042.2,11.87853906]
[1731144259336,1.3586,3042.3,3042.2,11.87853906]
[1731144260931,1.48970372,3042.3,3042.2,11.87853906]
[1731144261831,0.55,3042.2,3041.7,11.87853906]
[1731144262058,0.55,3042.2,3041.0,0.0807]
[1731144262059,0.44897037,3042.1,3041.8,11.87853906]
[1731144262354,0.55,3042.0,3041.8,11.87853906]
[1731144267540,0.55,3042.0,3041.9,11.87853906]
[1731144269466,0.55,3042.0,3041.5,11.87853906]
[1731144269768,0.39989704,3041.9,3041.5,11.87853906]
[1731144270052,0.55,3041.8,3041.1,11.87853906]
[1731144270766,0.7528,3041.7,3041.1,11.87853906]
[1731144271459,0.55,3041.6,3041.2,11.87853906]
[1731144272970,3.55,3041.6,3041.2,11.87853906]
[1731144273219,0.55,3041.4,3041.2,11.87853906]
[1731144273342,0.55,3041.0,3040.5,11.87853906]
[1731144273542,0.55,3041.0,3040.6,11.87853906]
[1731144274557,0.55,3041.0,3040.7,11.87853906]
[1731144274870,0.43028,3040.9,3040.7,11.87853906]
[1731144275077,0.55,3041.0,3040.7,11.87853906]
[1731144278041,0.67186945,3041.3,3040.7,11.87853906]
[1731144279376,0.55,3041.2,3040.8,11.87853906]
[1731144285313,0.55,3041.2,3040.9,11.87853906]
[1731144287578,3.0,3041.1,3040.9,11.87853906]
[1731144287915,1.233819,3041.0,3040.9,11.87853906]
[1731144288735,0.55,3041.2,3040.9,11.87853906]
[1731144289791,0.8304,3041.1,3040.9,11.87853906]
[1731144289991,0.55,3041.0,3040.9,11.87853906]
[1731144290591,0.55,3041.0,3040.9,10.9019537]
[1731144290842,0.55,3041.0,3040.2,10.9019537]
[1731144290991,0.43804,3040.9,3040.2,10.9019537]
[1731144291401,0.55,3040.8,3040.2,10.9019537]
[1731144292440,0.65933197,3040.5,3039.5,0.0807]
[1731144292613,0.55,3040.4,3039.6,10.9019537]
[1731144293236,0.55,3040.4,3039.8,0.00699046]
[1731144294399,0.55,3040.4,3039.6,10.90894416]
[1731144294834,0.55,3040.4,3039.6,10.9019537]
[1731144295008,0.55,3040.4,3039.8,0.00699046]
[1731144295358,0.55,3040.4,3039.6,10.90894416]
[1731144295638,0.55,3040.4,3039.8,0.00699046]
[1731144295882,0.55,3040.4,3039.6,10.90894416]
[1731144296651,0.55,3040.4,3039.8,0.00699046]
[1731144297372,0.55,3040.4,3039.8,10.9019537]
[1731144297575,0.55,3040.4,3039.8,10.90894416]
[1731144297778,0.65933197,3040.5,3040.1,0.00699046]
[1731144298086,0.65933197,3040.5,3040.2,0.0807]
[1731144298281,0.65933197,3040.5,3040.3,10.9019537]
[1731144298651,3.0,3041.1,3040.4,10.9019537]
[1731144298985,3.43340847,3041.2,3040.6,0.00699046]
[1731144299148,3.43340847,3041.2,3040.7,10.9019537]
[1731144299344,3.85343932,3041.2,3040.7,10.9019537]
[1731144299601,3.3,3041.2,3040.7,10.9019537]
[1731144301188,3.0,3041.1,3040.7,10.9019537]
[1731144301899,3.0,3041.1,3039.8,0.01]
[1731144301900,1.1667778,3042.0,3040.9,0.00699046]
[1731144302199,0.89558269,3042.4,3041.3,0.00699046]
[1731144302349,0.7669,3042.4,3041.7,0.00699046]
[1731144302555,0.7669,3042.4,3041.8,10.9019537]
[1731144303099,3.3,3042.9,3041.8,10.9019537]
[1731144303100,0.7996,3042.8,3041.8,10.9019537]
[1731144303252,0.39979118,3043.1,3042.1,0.00699046]
[1731144303253,0.3430738,3043.1,3042.1,0.00699046]
[1731144303486,0.3430738,3043.1,3042.3,0.00699046]
[1731144303731,0.64264208,3043.0,3042.4,0.0807]
[1731144303883,0.64264208,3043.0,3042.5,10.9019537]
[1731144305252,0.12838287,3043.3,3042.5,10.9019537]
[1731144305928,0.12838287,3043.3,3042.6,0.00699046]
[1731144307989,0.64592892,3043.2,3042.6,0.00699046]
[1731144309130,0.64592892,3043.2,3042.6,10.90894416]
[1731144311735,0.6703237,3043.5,3042.6,10.90894416]
[1731144312307,0.66677399,3043.4,3042.6,10.90894416]
[1731144312991,0.6703237,3043.5,3042.6,10.90894416]
[1731144313610,1.34018643,3043.5,3042.6,10.90894416]
[1731144313798,0.6703237,3043.5,3042.6,10.90894416]
[1731144314535,0.6703237,3043.5,3042.6,10.98964416]
[1731144316584,0.7996,3043.4,3042.6,10.98964416]
[1731144317511,0.6703237,3043.5,3042.6,10.98964416]
[1731144318555,0.7996,3044.0,3042.6,10.98964416]
[1731144318726,0.64914585,3043.9,3042.6,10.98964416]
[1731144319110,0.64914585,3043.9,3043.4,0.00699046]
[1731144319317,0.64914585,3043.9,3043.5,10.85262894]
[1731144320144,0.7996,3044.0,3043.5,10.85262894]
[1731144322657,1.45735295,3044.0,3043.5,10.85262894]
[1731144323955,1.45735295,3044.0,3043.6,10.85262894]
[1731144324266,0.65775295,3044.0,3043.6,10.85262894]
[1731144328657,3.65775295,3044.0,3043.6,10.85262894]
[1731144329899,0.65775295,3044.0,3043.7,10.85262894]
[1731144330184,0.34292634,3044.8,3044.5,0.00699046]
[1731144330546,0.04929717,3044.9,3044.7,0.00699046]
[1731144331456,0.04929717,3044.9,3044.5,0.00699046]
[1731144331649,0.55,3044.8,3044.2,0.08769046]
[1731144331844,0.04929717,3044.9,3044.2,0.08769046]
[1731144332068,0.04929717,3044.9,3044.4,0.00699046]
[1731144332672,0.04929717,3044.9,3044.4,0.07268122]
[1731144332856,0.04929717,3044.9,3044.7,0.00699046]
[1731144333447,0.04929717,3044.9,3044.5,0.00699046]
[1731144333649,0.04929717,3044.9,3044.7,0.00699046]
[1731144333849,0.04929717,3044.9,3044.5,0.00699046]
[1731144334049,0.04929717,3044.9,3044.3,0.2488862]
[1731144334397,0.04929717,3044.9,3044.6,0.00699046]
[1731144334553,0.04929717,3044.9,3044.5,0.00699046]
[1731144335790,0.04929717,3044.9,3044.6,10.85262894]
[1731144336669,4.3354,3044.8,3044.6,10.85262894]
[1731144336881,4.26127769,3044.7,3044.6,10.85262894]
[1731144337080,3.7854,3044.8,3044.6,10.85262894]
[1731144339482,3.0,3044.8,3044.6,10.85262894]
[1731144341670,3.55,3044.8,3044.7,10.85262894]
[1731144342301,3.0,3044.8,3044.7,10.85262894]
[1731144343467,3.55,3044.8,3044.7,10.85262894]
[1731144344202,4.26127769,3044.8,3044.7,10.85262894]
[1731144347394,0.8106,3044.6,3043.9,9.76274109]
[1731144347716,7.08867974,3044.0,3043.9,9.76274109]
[1731144348015,7.08867974,3044.0,3043.5,9.76274109]
[1731144348016,3.0,3043.9,3043.5,9.76274109]
[1731144348392,3.0,3044.2,3043.5,9.76274109]
[1731144348578,0.71127769,3044.8,3043.8,0.00699046]
[1731144348579,3.0,3044.5,3043.8,0.00699046]
[1731144348779,3.0,3044.5,3044.0,0.00699046]
[1731144349083,2.72807974,3044.6,3044.0,0.00699046]
[1731144349286,2.72807974,3044.3,3043.7,0.00699046]
[1731144350383,3.0,3044.2,3043.7,0.00699046]
[1731144350724,0.55,3044.1,3043.5,9.76973155]
[1731144351041,1.25886797,3044.1,3043.5,9.76973155]
[1731144351189,3.0,3043.9,3043.5,9.76973155]
[1731144353203,3.0,3043.9,3043.5,9.76274109]
[1731144353402,3.0,3043.9,3043.6,9.76274109]
[1731144354037,1.25886797,3044.1,3043.6,9.76274109]
[1731144354736,0.55,3044.1,3043.6,9.76274109]
[1731144355036,0.64042984,3044.4,3043.6,9.76274109]
[1731144355242,2.72807974,3044.6,3043.9,0.00699046]
[1731144355422,2.72807974,3044.6,3043.9,0.07268822]
[1731144355939,2.72807974,3044.6,3044.1,0.00699046]
[1731144356810,0.55,3044.5,3044.1,0.00699046]
[1731144357141,3.55,3044.5,3044.1,0.00699046]
[1731144359644,3.55,3044.5,3044.2,9.76274109]
[1731144361419,0.34282109,3044.4,3044.2,9.76274109]
[1731144364355,7.02887974,3044.3,3044.2,9.76274109]
[1731144365439,0.55,3044.1,3043.7,9.76274109]
[1731144365624,2.72807974,3044.0,3043.7,9.76274109]
[1731144365827,0.55,3043.8,3043.7,9.76274109]
[1731144366926,3.0,3044.2,3043.8,0.0807]
[1731144367129,0.34282109,3044.4,3044.0,0.00699046]
[1731144367363,0.34282109,3044.4,3044.2,0.00699046]
[1731144371228,0.89282109,3044.4,3044.3,9.76274109]
[1731144372241,1.55491117,3044.4,3044.3,9.76274109]
[1731144373930,1.55491117,3044.4,3044.2,0.00699046]
[1731144374161,0.55,3044.3,3044.0,0.00699046]
[1731144374362,0.55,3044.3,3044.2,0.00699046]
[1731144374885,3.27807974,3044.3,3043.9,6.57574925]
[1731144375095,3.27807974,3044.0,3043.9,6.57574925]
[1731144375245,3.55,3043.9,3043.3,0.00699046]
[1731144375446,0.42829909,3044.2,3043.5,0.00699046]
[1731144375447,3.55,3043.6,3043.5,0.00699046]
[1731144377440,3.55,3043.9,3043.5,0.00699046]
[1731144377641,3.07096666,3044.0,3043.5,0.00699046]
[1731144377642,0.34288692,3044.0,3043.5,0.00699046]
[1731144380082,0.34288692,3044.0,3043.6,6.57574925]
[1731144380909,0.34288692,3044.0,3042.7,0.02]
[1731144380910,0.34288692,3044.0,3043.8,0.00699046]
[1731144384810,0.34288692,3044.0,3043.8,0.07268791]
[1731144385024,0.34288692,3044.0,3043.9,6.65644925]
[1731144390731,3.0,3044.7,3043.9,6.65644925]
[1731144391056,3.71847509,3044.7,3044.4,0.00699046]
[1731144391831,3.71847509,3044.7,3043.4,0.01]
[1731144391832,0.01,3044.4,3043.2,1.35842573]
[1731144392140,0.01,3044.4,3041.4,0.01]
[1731144392141,0.01,3042.9,3041.4,0.01]
[1731144392426,3.0,3043.2,3041.8,0.01]
[1731144392648,0.64457653,3043.4,3041.8,0.01]
[1731144392790,0.56,3043.3,3041.8,0.01]
[1731144393289,3.0,3043.2,3041.8,0.01]
[1731144394829,0.55,3043.1,3041.8,0.01]
[1731144395831,0.55,3043.1,3041.2,0.51354557]
[1731144395832,2.72807974,3042.7,3041.4,0.01]
[1731144395989,3.0,3042.6,3041.4,0.01]
[1731144396614,3.0,3042.6,3041.2,0.52354557]
[1731144396815,3.0,3042.6,3041.3,12.19]
[1731144396816,0.55,3042.5,3041.3,12.19]
[1731144397032,0.55,3042.5,3041.4,0.57928469]
[1731144397204,0.55,3042.5,3041.5,1.27692847]
[1731144397995,3.55,3042.3,3041.5,1.27692847]
[1731144398201,3.55,3042.3,3041.3,12.19]
[1731144398202,0.7669,3042.2,3041.3,12.19]
[1731144398433,0.7669,3042.2,3040.9,0.51354557]
[1731144398434,0.7669,3042.2,3041.4,12.19]
[1731144398629,0.7669,3042.2,3041.5,12.19]
[1731144398926,0.7669,3042.2,3041.6,0.0657447]
[1731144399125,3.27807974,3042.1,3041.5,12.19]
[1731144399328,3.0,3042.0,3041.5,12.19]
[1731144399532,3.0,3042.0,3041.6,0.06574898]
[1731144399849,3.0,3042.3,3041.7,12.19]
[1731144400047,3.0,3042.3,3041.8,0.06574328]
[1731144400333,3.01,3042.3,3041.8,0.06574328]
[1731144400528,3.0,3042.3,3041.8,0.06574328]
[1731144403210,3.0,3042.3,3041.7,12.19]
[1731144403410,3.0,3042.3,3041.8,0.06574091]
[1731144403821,3.0,3042.3,3041.9,12.19]
[1731144405911,3.0,3042.6,3042.0,0.06574293]
[1731144406122,2.72807974,3042.7,3042.1,12.19]
[1731144406310,0.34325647,3042.5,3042.1,12.19]
[1731144408810,2.72807974,3042.4,3042.1,12.19]
[1731144409047,3.0,3042.3,3042.1,12.19]
[1731144409252,0.34325647,3042.5,3042.1,12.19]
[1731144409420,0.34325647,3042.5,3042.1,12.66119844]
[1731144409620,0.34325647,3042.5,3042.2,12.19]
[1731144409848,0.34325647,3042.5,3042.3,0.06573298]
[1731144410049,0.34325647,3042.5,3042.2,12.19]
[1731144410216,0.34325647,3042.5,3042.3,0.0657327]
[1731144412850,0.34325647,3042.5,3042.4,12.19]
[1731144414227,2.27739009,3042.5,3042.4,12.19]
[1731144416239,2.27739009,3042.5,3040.3,10.02807974]
[1731144416240,0.56,3042.4,3041.1,12.19]
[1731144416437,0.56,3042.4,3040.8,0.01]
[1731144416438,3.0,3042.0,3041.2,12.19]
[1731144416879,3.0,3042.3,3041.3,0.06574597]
[1731144417051,0.55,3042.2,3041.4,1.2255746]
[1731144417239,0.55,3042.2,3041.5,0.06574558]
[1731144421381,0.777,3042.1,3041.5,0.06574558]
[1731144421584,0.777,3042.1,3041.6,12.19]
[1731144422641,0.777,3042.1,3041.7,0.06574562]
[1731144423398,0.777,3042.1,3041.6,12.19]
[1731144423750,2.72807974,3041.8,3041.6,12.19]
[1731144423945,2.72807974,3041.8,3040.9,12.19]
[1731144423946,3.7799,3041.7,3040.9,12.19]
[1731144424182,3.7799,3041.7,3040.8,0.01]
[1731144424183,3.7799,3041.7,3041.0,12.19]
[1731144427491,3.7799,3041.7,3041.1,12.19]
[1731144427867,3.7799,3041.7,3041.1,13.409]
[1731144428060,3.0,3042.0,3041.2,0.06575057]
[1731144428256,0.7799,3042.1,3041.2,0.06575057]
[1731144428718,3.0,3042.3,3041.2,0.06574569]
[1731144428911,3.0,3042.3,3041.3,1.34747457]
[1731144429406,3.01,3042.3,3041.3,1.34747457]
[1731144429558,3.0,3042.3,3041.3,1.34747457]
[1731144429762,3.01,3042.3,3041.3,1.34747457]
[1731144429958,3.0,3042.3,3041.3,1.34747457]
[1731144430206,0.7799,3042.4,3041.3,1.34747457]
[1731144430369,0.7799,3042.4,3041.4,12.25573971]
[1731144430569,0.7799,3042.8,3041.5,13.55032143]
[1731144430900,0.7799,3043.1,3041.6,12.26573232]
[1731144431101,0.7799,3043.1,3041.8,0.01]
[1731144431310,0.7799,3043.1,3041.9,0.06572387]
[1731144431811,0.7799,3043.4,3042.2,0.01]
[1731144431975,0.7799,3043.4,3042.2,1.23]
[1731144432382,0.7799,3043.4,3042.3,0.06571554]
[1731144432576,0.7799,3043.4,3042.4,12.19]
[1731144432775,0.7799,3043.4,3042.5,0.06571544]
[1731144433006,0.7799,3043.8,3042.5,0.07571544]
[1731144433304,0.7799,3043.8,3042.6,13.41657154]
[1731144434210,2.72807974,3043.6,3042.6,13.41657154]
[1731144434692,3.0,3043.5,3042.6,13.41657154]
[1731144435043,3.0,3043.7,3042.6,13.41657154]
[1731144436385,3.0,3043.7,3042.7,12.19]
[1731144436590,3.0,3043.7,3042.8,1.34165715]
[1731144437417,3.55,3043.4,3042.7,12.19]
[1731144439520,3.55,3043.4,3042.8,0.06571952]
[1731144441799,3.55,3043.4,3042.7,12.19]
[1731144442344,3.55,3043.4,3042.0,12.19]
[1731144442906,3.0,3043.1,3042.1,12.19]
[1731144443106,0.8213,3043.3,3042.2,1.2847218]
[1731144443301,3.56,3043.4,3042.2,1.2847218]
[1731144443515,3.01,3043.4,3042.2,1.219]
[1731144444017,0.01,3043.8,3042.3,0.01]
[1731144444223,0.01,3043.8,3042.5,0.01]
[1731144444224,3.01,3043.8,3042.5,0.01]
[1731144444418,3.01,3043.8,3042.5,0.07570776]
[1731144447266,2.72807974,3044.2,3042.9,0.01]
[1731144447468,2.72807974,3044.2,3043.0,12.19]
[1731144447681,2.72807974,3044.2,3043.1,1.22656987]
[1731144447913,2.72807974,3044.2,3043.1,1.22085787]
[1731144448071,0.66347783,3044.1,3043.1,1.22085787]
[1731144448770,3.66347783,3044.1,3043.1,1.22085787]
[1731144449718,2.72807974,3043.9,3043.1,1.22085787]
[1731144450215,3.0,3043.8,3043.0,12.19]
[1731144450386,2.72807974,3043.6,3043.0,12.19]
[1731144450713,3.0,3043.5,3043.0,12.19]
[1731144450899,3.0,3043.5,3043.1,12.19]
[1731144451079,3.0,3043.8,3043.2,0.06571102]
[1731144452078,3.0,3043.8,3043.1,12.19]
[1731144454012,3.0,3043.5,3043.1,12.19]
[1731144454186,3.0,3043.5,3043.2,12.19]
[1731144454824,3.0,3043.5,3043.2,12.15]
[1731144456305,0.69822355,3043.8,3043.2,12.15]
[1731144456494,0.69822355,3043.8,3043.3,0.06570986]
[1731144456495,3.69822355,3043.8,3043.3,0.06570986]
[1731144457635,3.69822355,3043.8,3043.2,12.15]
[1731144457786,0.71304591,3043.7,3043.2,12.15]
[1731144459021,3.0,3043.5,3043.2,12.15]
[1731144459595,5.72807974,3043.3,3043.2,12.15]
[1731144460384,3.0,3043.2,3042.2,12.15]
[1731144460585,3.0,3043.2,3042.3,12.15]
[1731144463006,3.0,3043.2,3042.4,0.06572006]
[1731144463197,3.0,3043.2,3042.5,1.22157201]
[1731144465221,3.0,3043.2,3042.3,12.15]
[1731144465591,3.0,3043.2,3042.4,12.15]
[1731144466132,3.0,3042.9,3042.4,12.15]
[1731144467700,3.65495797,3042.9,3042.4,12.15]
[1731144469092,3.65495797,3042.9,3042.5,12.15]
[1731144471929,2.65,3042.9,3042.5,12.15]
[1731144473011,0.55,3042.8,3042.5,12.15]
[1731144474549,2.65,3042.9,3042.6,0.065729]
[1731144474951,2.65,3042.9,3042.7,12.15]
[1731144475646,3.0,3043.2,3042.7,12.15]
[1731144475818,3.0,3043.2,3042.8,0.06572014]
[1731144476022,2.72807974,3043.3,3042.8,0.06572014]
[1731144476387,0.8215,3043.7,3042.8,1.28729189]
[1731144476533,0.01,3043.6,3042.8,1.28729189]
[1731144476846,0.01,3043.6,3042.9,0.24271665]
[1731144477155,2.73807974,3043.6,3043.0,12.15]
[1731144477948,3.55,3043.5,3043.0,12.15]
[1731144480341,4.26095797,3043.5,3043.0,12.15]
[1731144480541,3.0,3043.2,3043.0,12.15]
[1731144480932,3.0,3043.2,3043.1,12.15]
[1731144483343,3.55,3043.2,3043.1,12.15]
[1731144484374,4.3006,3043.2,3043.1,12.15]
[1731144484545,5.00346797,3043.2,3043.1,12.15]
[1731144486835,0.55,3043.1,3042.0,12.15]
[1731144487062,0.55,3043.1,3042.1,12.15]
[1731144487649,0.55,3043.1,3042.2,0.06572307]
[1731144489245,3.0,3042.9,3042.1,12.15]
[1731144489545,3.0,3043.2,3042.2,1.28072501]
[1731144489546,3.55,3043.2,3042.2,1.28072501]
[1731144490772,3.0,3043.2,3042.2,1.28072501]
[1731144490981,0.6554878,3043.3,3042.2,1.215]
[1731144492963,0.6554878,3043.3,3042.3,12.15]
[1731144495473,0.6554878,3043.3,3042.3,11.8]
[1731144495674,0.6554878,3043.3,3042.4,1.3015]
[1731144496349,0.55,3043.4,3042.4,1.3015]
[1731144496889,1.22178301,3043.5,3042.5,0.06571557]
[1731144498676,1.22178301,3043.5,3042.6,11.8]
[1731144498990,1.22178301,3043.5,3042.7,1.25228705]
[1731144499146,1.22178301,3043.5,3042.8,11.8]
[1731144499349,1.22178301,3043.5,3042.9,0.0657155]
[1731144499788,0.55,3043.5,3042.9,0.0657155]
[1731144499973,0.55,3043.6,3042.9,0.0657155]
[1731144500174,3.0,3043.7,3042.9,1.37094421]
[1731144501286,2.72807974,3044.1,3043.0,11.8]
[1731144501590,0.7606,3044.2,3043.0,11.8]
[1731144501745,0.7606,3044.2,3043.1,11.8]
[1731144501952,1.4309415,3044.2,3043.1,11.8]
[1731144502320,2.72807974,3044.1,3043.2,1.18]
[1731144502450,3.0,3044.0,3043.2,1.18]
[1731144507574,3.0,3044.0,3043.3,11.8]
[1731144509078,2.72807974,3043.8,3043.3,11.8]
[1731144509283,3.0,3043.4,3043.3,11.8]
[1731144509466,0.01,3044.1,3043.3,11.8]
[1731144509669,1.25924643,3043.8,3043.4,11.8]
[1731144511660,1.25924643,3043.6,3043.4,11.8]
[1731144513506,1.25924643,3043.6,3043.5,11.8]
[1731144517410,5.62014643,3043.6,3043.5,11.8]
[1731144517567,6.60908572,3043.6,3043.5,11.8]
[1731144519495,3.55,3043.5,3042.2,11.8]
[1731144519696,1.25924643,3043.3,3042.3,11.8]
[1731144520612,1.25924643,3043.3,3042.4,0.06571712]
[1731144520813,1.25924643,3043.3,3042.5,1.18657171]
[1731144520975,1.25924643,3043.3,3042.6,0.06571706]
[1731144521514,1.25924643,3043.3,3042.5,1.18657171]
[1731144523886,1.25924643,3043.3,3042.6,0.06571711]
[1731144525010,1.25924643,3043.3,3042.6,0.06571719]
[1731144525212,1.25924643,3043.3,3042.5,1.18657171]
[1731144525374,1.25924643,3043.3,3042.6,11.8]
[1731144525575,1.25924643,3043.3,3042.6,13.09865717]
[1731144528707,1.25924643,3043.3,3042.7,0.06571727]
[1731144529217,0.8109,3043.6,3042.7,0.06571727]
[1731144529378,0.8109,3043.6,3042.6,13.09865717]
[1731144530888,1.25924643,3043.7,3042.6,13.09865717]
[1731144531121,1.25924643,3043.7,3042.7,1.31086572]
[1731144531321,1.25924643,3043.7,3042.8,11.8]
[1731144534220,1.25924643,3043.5,3042.8,11.8]
[1731144536020,1.25924643,3043.5,3042.9,0.06571347]
[1731144536185,1.25924643,3043.5,3043.0,11.8]
[1731144537186,1.25924643,3043.5,3043.0,12.98]
[1731144538385,1.25924643,3043.3,3043.0,11.8]
[1731144538808,1.25924643,3043.3,3043.1,0.06571582]
[1731144539020,1.25924643,3043.3,3043.0,11.8]
[1731144540324,1.25924643,3043.3,3043.1,11.8]
[1731144540930,0.8276,3043.4,3043.1,11.8]
[1731144541489,3.0,3043.6,3043.1,11.8]
[1731144541717,1.25924643,3043.5,3043.2,0.06571347]
[1731144541903,1.25924643,3043.5,3043.1,11.8]
[1731144542525,1.25924643,3043.3,3043.1,11.8]
[1731144543728,2.09684643,3043.7,3043.1,11.8]
[1731144544032,5.09684643,3043.7,3043.1,11.8]
[1731144546102,5.09684643,3043.7,3043.2,11.8]
[1731144546992,5.08684643,3043.7,3043.2,11.8]
[1731144547725,5.09684643,3043.7,3043.2,11.8]
[1731144548237,0.01,3044.1,3043.2,12.98]
[1731144548443,1.25924643,3044.2,3043.3,0.06570036]
[1731144548626,0.66687032,3044.2,3043.4,11.8]
[1731144548829,0.66687032,3044.2,3043.5,1.25227042]
[1731144548830,1.25924643,3044.1,3043.5,1.25227042]
[1731144552162,1.25924643,3044.1,3043.6,11.8]
[1731144553459,1.25924643,3043.9,3043.6,11.8]
[1731144557976,1.25924643,3043.9,3043.7,11.8]
[1731144558165,1.25924643,3043.9,3043.7,13.098657]
[1731144562291,0.7693,3044.6,3043.8,0.06570219]
[1731144562443,1.25924643,3044.6,3043.9,11.8]
[1731144562645,1.25924643,3044.6,3044.0,0.06568985]
[1731144562882,1.25924643,3044.6,3044.1,12.98656899]
[1731144563084,1.25924643,3044.6,3044.2,0.06568972]
[1731144564751,1.25924643,3044.4,3044.1,12.98656899]
[1731144566257,5.07604643,3044.4,3044.1,12.98656899]
[1731144566590,5.07604643,3044.4,3044.1,11.8]
[1731144566748,1.25924643,3044.2,3044.1,11.8]
[1731144576396,0.55,3044.3,3044.1,11.8]
[1731144576590,3.55,3044.3,3044.1,11.8]
[1731144577288,1.25924643,3044.2,3044.1,11.8]
[1731144579457,1.82185107,3044.2,3044.1,11.8]
[1731144580488,5.37185107,3044.2,3044.1,11.8]
[1731144581003,2.37185107,3044.2,3044.1,11.8]
[1731144584681,3.55,3044.1,3042.9,11.8]
[1731144585005,3.55,3044.1,3043.0,11.8]
[1731144585006,0.55,3044.1,3043.0,11.8]
[1731144585158,0.55,3044.1,3043.1,1.18]
[1731144590563,0.55,3044.1,3043.2,11.8]
[1731144594318,0.55,3044.2,3043.2,13.05924643]
[1731144594474,0.55,3044.3,3043.3,0.06570122]
[1731144596494,0.55,3044.3,3043.4,11.8]
[1731144596709,0.55,3044.3,3043.5,0.06570131]
[1731144599213,0.796,3044.9,3043.9,1.30592464]
[1731144599919,3.796,3044.9,3043.9,1.30592464]
[1731144600427,3.796,3044.9,3044.0,0.06568442]
[1731144602493,3.796,3044.9,3044.0,11.86568442]
[1731144602694,3.796,3044.9,3044.0,11.8]
[1731144602914,3.796,3044.9,3044.1,1.31059246]
[1731144603716,3.796,3044.9,3044.2,0.06568457]
[1731144604094,0.796,3044.9,3044.2,0.06568457]
[1731144604497,0.796,3044.9,3043.9,0.06568456]
[1731144604915,0.796,3044.9,3043.9,11.86568456]
[1731144605222,1.307,3045.1,3044.0,1.3124931]
[1731144605392,4.307,3045.1,3044.1,0.06567995]
[1731144606281,4.307,3045.1,3043.9,0.06568017]
[1731144607119,4.307,3045.1,3043.8,1.26924643]
[1731144608501,4.307,3045.1,3043.9,0.06568029]
[1731144609487,4.307,3045.1,3043.8,1.33492678]
[1731144609719,4.307,3045.1,3043.8,1.26924643]
[1731144609922,4.307,3045.1,3043.9,0.06568038]
[1731144610119,0.757,3045.1,3044.2,0.01]
[1731144610588,1.09894688,3045.9,3045.0,1.25924643]
[1731144610792,0.757,3045.9,3045.1,11.86566319]
[1731144611022,0.757,3045.9,3045.2,1.31249096]
[1731144611185,2.01624643,3045.9,3045.2,1.31249096]
[1731144611618,0.767,3046.2,3045.3,11.8656612]
[1731144611833,0.767,3046.2,3045.3,11.8]
[1731144613025,0.757,3045.7,3045.3,11.8]
[1731144616634,3.55,3045.6,3045.3,11.8]
[1731144617333,0.55,3045.6,3044.5,1.25924643]